[Event "Titled Tuesday Blitz June 27 Late 2023"]
[White "Waldo Zalapa, Alejandro"]
[Black "Ottosen, David"]
[WhiteFideId "5106109"]
[BlackFideId "2603080"]
[WhiteElo "2161"]
[BlackElo "2028"]
[Result "1-0"]
[Round "5"]
[TimeControl "180+2"]
[Date "2023.06.27"]
[WhiteClock "0:01:47"]
[BlackClock "0:02:14"]
[Board "164"]

1. e4 {[%clk 0:03:00]}  e6 {[%clk 0:02:59]} 2. d4 {[%clk 0:02:59]}  d5 {[%clk 0:03:00]} 3. exd5 {[%clk 0:02:59]}  exd5 {[%clk 0:03:00]} 4. Nf3 {[%clk 0:02:59]}  Nc6 {[%clk 0:03:00]} 5. Bd3 {[%clk 0:02:59]}  Bg4 {[%clk 0:02:59]} 6. c3 {[%clk 0:02:59]}  Bd6 {[%clk 0:02:51]} 7. Be3 {[%clk 0:02:57]}  Qd7 {[%clk 0:02:50]} 8. Nbd2 {[%clk 0:02:56]}  O-O-O {[%clk 0:02:50]} 9. O-O {[%clk 0:02:56]}  Nge7 {[%clk 0:02:50]} 10. b4 {[%clk 0:02:55]}  f5 {[%clk 0:02:50]} 11. Bg5 {[%clk 0:02:51]}  h6 {[%clk 0:02:50]} 12. Bxe7 {[%clk 0:02:48]}  Nxe7 {[%clk 0:02:50]} 13. Qc2 {[%clk 0:02:46]}  Kb8 {[%clk 0:02:49]} 14. Rfe1 {[%clk 0:02:45]}  g5 {[%clk 0:02:48]} 15. Ne5 {[%clk 0:02:44]}  Bxe5 {[%clk 0:02:47]} 16. Rxe5 {[%clk 0:02:43]}  Ng6 {[%clk 0:02:45]} 17. Bxf5 {[%clk 0:02:36]}  Bxf5 {[%clk 0:02:45]} 18. Rxf5 {[%clk 0:02:36]}  Nf4 {[%clk 0:02:46]} 19. Re1 {[%clk 0:02:31]}  Rdg8 {[%clk 0:02:40]} 20. Nf3 {[%clk 0:02:29]}  g4 {[%clk 0:02:35]} 21. Ne5 {[%clk 0:02:27]}  Qh7 {[%clk 0:02:31]} 22. Nf7 {[%clk 0:01:50]}  Rf8 {[%clk 0:02:25]} 23. Nxh8 {[%clk 0:01:50]}  Rxh8 {[%clk 0:02:14]} 24. Rf8+ {[%clk 0:01:47]} 1-0


[Site "https://www.chess.com"]

[Event "Titled Tuesday Blitz June 27 Late 2023"]
[White "Alberto, Manuel"]
[Black "Hartikainen, Jarmo"]
[WhiteFideId "10100148"]
[BlackFideId "503134"]
[WhiteElo "2001"]
[BlackElo "2152"]
[Result "1/2-1/2"]
[Round "5"]
[TimeControl "180+2"]
[Date "2023.06.27"]
[WhiteClock "0:00:39"]
[BlackClock "0:00:03"]
[Board "165"]

1. e4 {[%clk 0:03:00]}  c5 {[%clk 0:02:58]} 2. Nf3 {[%clk 0:03:00]}  Nc6 {[%clk 0:02:58]} 3. Bb5 {[%clk 0:02:58]}  e6 {[%clk 0:02:58]} 4. Bxc6 {[%clk 0:02:58]}  bxc6 {[%clk 0:02:58]} 5. O-O {[%clk 0:02:58]}  Ne7 {[%clk 0:02:57]} 6. Re1 {[%clk 0:02:58]}  Ng6 {[%clk 0:02:56]} 7. d3 {[%clk 0:02:58]}  Be7 {[%clk 0:02:48]} 8. Nbd2 {[%clk 0:02:58]}  Qc7 {[%clk 0:02:35]} 9. e5 {[%clk 0:02:56]}  f6 {[%clk 0:02:17]} 10. exf6 {[%clk 0:02:53]}  gxf6 {[%clk 0:02:11]} 11. a4 {[%clk 0:02:53]}  d5 {[%clk 0:01:53]} 12. Nf1 {[%clk 0:02:50]}  h5 {[%clk 0:01:27]} 13. g3 {[%clk 0:02:43]}  Bd6 {[%clk 0:01:07]} 14. Ne3 {[%clk 0:02:40]}  Kf7 {[%clk 0:01:01]} 15. Ng2 {[%clk 0:02:40]}  h4 {[%clk 0:00:54]} 16. Nfxh4 {[%clk 0:02:36]}  Nxh4 {[%clk 0:00:53]} 17. Nxh4 {[%clk 0:02:36]}  Bd7 {[%clk 0:00:37]} 18. Nf3 {[%clk 0:02:29]}  Rag8 {[%clk 0:00:35]} 19. Kg2 {[%clk 0:02:20]}  e5 {[%clk 0:00:34]} 20. Ng1 {[%clk 0:02:18]}  Bf5 {[%clk 0:00:27]} 21. Qf3 {[%clk 0:02:12]}  Qd7 {[%clk 0:00:25]} 22. Bd2 {[%clk 0:02:08]}  Bg4 {[%clk 0:00:23]} 23. Qe3 {[%clk 0:02:07]}  d4 {[%clk 0:00:22]} 24. Qe4 {[%clk 0:02:07]}  f5 {[%clk 0:00:17]} 25. Qxe5 {[%clk 0:02:00]}  Bxe5 {[%clk 0:00:17]} 26. Rxe5 {[%clk 0:02:00]}  Re8 {[%clk 0:00:16]} 27. Rxc5 {[%clk 0:01:59]}  f4 {[%clk 0:00:12]} 28. Bxf4 {[%clk 0:01:58]}  Bh3+ {[%clk 0:00:12]} 29. Kh1 {[%clk 0:01:53]}  Re6 {[%clk 0:00:12]} 30. f3 {[%clk 0:01:51]}  Reh6 {[%clk 0:00:12]} 31. Bxh6 {[%clk 0:01:49]}  Rxh6 {[%clk 0:00:12]} 32. Re1 {[%clk 0:01:46]}  Be6 {[%clk 0:00:10]} 33. Rce5 {[%clk 0:01:41]}  Kf8 {[%clk 0:00:10]} 34. h4 {[%clk 0:01:38]}  Rf6 {[%clk 0:00:10]} 35. Kg2 {[%clk 0:01:38]}  Kg7 {[%clk 0:00:09]} 36. f4 {[%clk 0:01:35]}  Bd5+ {[%clk 0:00:09]} 37. Kf2 {[%clk 0:01:33]}  Rf7 {[%clk 0:00:09]} 38. Nh3 {[%clk 0:01:32]}  Qb7 {[%clk 0:00:09]} 39. b3 {[%clk 0:01:30]}  Qd7 {[%clk 0:00:08]} 40. Ng5 {[%clk 0:01:29]}  Qg4 {[%clk 0:00:08]} 41. R1e2 {[%clk 0:01:24]}  Rb7 {[%clk 0:00:07]} 42. Re7+ {[%clk 0:01:20]}  Rxe7 {[%clk 0:00:07]} 43. Rxe7+ {[%clk 0:01:20]}  Kf6 {[%clk 0:00:07]} 44. Re2 {[%clk 0:01:19]}  Qd7 {[%clk 0:00:06]} 45. Re5 {[%clk 0:01:18]}  Qg4 {[%clk 0:00:06]} 46. Re8 {[%clk 0:01:13]}  Qd1 {[%clk 0:00:05]} 47. Re2 {[%clk 0:01:11]}  Qc1 {[%clk 0:00:04]} 48. h5 {[%clk 0:01:09]}  Qh1 {[%clk 0:00:04]} 49. g4 {[%clk 0:01:07]}  Qg2+ {[%clk 0:00:04]} 50. Ke1 {[%clk 0:01:07]}  Qxg4 {[%clk 0:00:04]} 51. h6 {[%clk 0:01:01]}  Kg6 {[%clk 0:00:04]} 52. h7 {[%clk 0:00:59]}  Kg7 {[%clk 0:00:04]} 53. Re8 {[%clk 0:00:54]}  Qg3+ {[%clk 0:00:04]} 54. Kd1 {[%clk 0:00:53]}  Qg1+ {[%clk 0:00:02]} 55. Ke2 {[%clk 0:00:48]}  Qg2+ {[%clk 0:00:02]} 56. Ke1 {[%clk 0:00:47]}  Qg1+ {[%clk 0:00:03]} 57. Ke2 {[%clk 0:00:44]}  Qg2+ {[%clk 0:00:03]} 58. Ke1 {[%clk 0:00:44]}  Qg1+ {[%clk 0:00:03]} 59. Ke2 {[%clk 0:00:39]} 1/2-1/2


[Site "https://www.chess.com"]

[Event "Titled Tuesday Blitz June 27 Late 2023"]
[White "Sjugirov, Sanan"]
[Black "Carlsen, Magnus"]
[WhiteFideId "4189302"]
[BlackFideId "1503014"]
[WhiteElo "2955"]
[BlackElo "3298"]
[Result "0-1"]
[Round "6"]
[TimeControl "180+2"]
[Date "2023.06.27"]
[WhiteClock "0:00:00"]
[BlackClock "0:02:40"]
[Board "1"]

1. d4 {[%clk 0:03:00]}  Nf6 {[%clk 0:02:50]} 2. c4 {[%clk 0:03:00]}  e6 {[%clk 0:02:50]} 3. Nc3 {[%clk 0:03:00]}  Bb4 {[%clk 0:02:50]} 4. e3 {[%clk 0:03:00]}  O-O {[%clk 0:02:49]} 5. Ne2 {[%clk 0:03:00]}  Re8 {[%clk 0:02:49]} 6. Ng3 {[%clk 0:03:00]}  d5 {[%clk 0:02:47]} 7. Be2 {[%clk 0:03:00]}  dxc4 {[%clk 0:02:42]} 8. Bxc4 {[%clk 0:03:01]}  c5 {[%clk 0:02:43]} 9. O-O {[%clk 0:03:01]}  cxd4 {[%clk 0:02:42]} 10. exd4 {[%clk 0:03:02]}  Nc6 {[%clk 0:02:43]} 11. Be3 {[%clk 0:03:03]}  Bd6 {[%clk 0:02:41]} 12. Rc1 {[%clk 0:00:00]}  Nd5 {[%clk 0:02:40]} 0-1


[Site "https://www.chess.com"]

[Event "Titled Tuesday Blitz June 27 Late 2023"]
[White "Martinez Alcantara, Jose Eduardo"]
[Black "Bluebaum, Matthias"]
[WhiteFideId "3805662"]
[BlackFideId "24651516"]
[WhiteElo "3008"]
[BlackElo "3069"]
[Result "1-0"]
[Round "6"]
[TimeControl "180+2"]
[Date "2023.06.27"]
[WhiteClock "0:00:41"]
[BlackClock "0:00:35"]
[Board "5"]

1. e4 {[%clk 0:03:00]}  e6 {[%clk 0:03:00]} 2. d4 {[%clk 0:03:00]}  d5 {[%clk 0:03:01]} 3. Nd2 {[%clk 0:03:01]}  c5 {[%clk 0:03:01]} 4. Ngf3 {[%clk 0:03:01]}  Nf6 {[%clk 0:03:02]} 5. exd5 {[%clk 0:03:00]}  Nxd5 {[%clk 0:03:02]} 6. c3 {[%clk 0:02:58]}  cxd4 {[%clk 0:02:56]} 7. Nxd4 {[%clk 0:02:59]}  Bc5 {[%clk 0:02:56]} 8. N2b3 {[%clk 0:02:58]}  Bd6 {[%clk 0:02:54]} 9. Bd3 {[%clk 0:02:56]}  O-O {[%clk 0:02:54]} 10. O-O {[%clk 0:02:57]}  h6 {[%clk 0:02:53]} 11. Re1 {[%clk 0:02:55]}  a6 {[%clk 0:02:50]} 12. Be4 {[%clk 0:02:41]}  Nf6 {[%clk 0:02:48]} 13. Bc2 {[%clk 0:02:38]}  Qc7 {[%clk 0:02:44]} 14. h3 {[%clk 0:02:36]}  b5 {[%clk 0:02:39]} 15. a4 {[%clk 0:02:36]}  b4 {[%clk 0:02:33]} 16. cxb4 {[%clk 0:02:30]}  Bxb4 {[%clk 0:02:33]} 17. Bd2 {[%clk 0:02:30]}  Bxd2 {[%clk 0:02:31]} 18. Qxd2 {[%clk 0:02:31]}  Bb7 {[%clk 0:02:31]} 19. Rac1 {[%clk 0:02:27]}  Qd6 {[%clk 0:02:19]} 20. Na5 {[%clk 0:02:24]}  Bd5 {[%clk 0:02:18]} 21. Bb1 {[%clk 0:02:05]}  Nbd7 {[%clk 0:02:10]} 22. Ndc6 {[%clk 0:02:05]}  Rfc8 {[%clk 0:01:59]} 23. b4 {[%clk 0:02:05]}  Rc7 {[%clk 0:01:50]} 24. b5 {[%clk 0:02:03]}  axb5 {[%clk 0:01:50]} 25. axb5 {[%clk 0:02:04]}  Nb6 {[%clk 0:01:25]} 26. Qd4 {[%clk 0:01:57]}  Nfd7 {[%clk 0:01:20]} 27. Qd3 {[%clk 0:01:40]}  Nf6 {[%clk 0:01:19]} 28. Qd4 {[%clk 0:01:40]}  Nfd7 {[%clk 0:01:19]} 29. Rc3 {[%clk 0:01:32]}  e5 {[%clk 0:00:52]} 30. Qd2 {[%clk 0:01:31]}  Qe6 {[%clk 0:00:36]} 31. Ne7+ {[%clk 0:01:25]}  Qxe7 {[%clk 0:00:37]} 32. Rxc7 {[%clk 0:01:25]}  Qd6 {[%clk 0:00:26]} 33. Rcc1 {[%clk 0:01:17]}  g6 {[%clk 0:00:21]} 34. Nc6 {[%clk 0:01:15]}  Kg7 {[%clk 0:00:21]} 35. Red1 {[%clk 0:01:14]}  Qe6 {[%clk 0:00:21]} 36. Qe3 {[%clk 0:01:10]}  Ra4 {[%clk 0:00:18]} 37. Re1 {[%clk 0:01:02]}  Qd6 {[%clk 0:00:17]} 38. Nxe5 {[%clk 0:00:58]}  Nf6 {[%clk 0:00:17]} 39. Qc3 {[%clk 0:00:49]}  Ra3 {[%clk 0:00:16]} 40. Qc7 {[%clk 0:00:46]}  Qb4 {[%clk 0:00:07]} 41. Qxb6 {[%clk 0:00:35]}  Qf4 {[%clk 0:00:07]} 42. Rcd1 {[%clk 0:00:19]}  Ba8 {[%clk 0:00:03]} 43. Qd4 {[%clk 0:00:17]}  Qg5 {[%clk 0:00:03]} 44. Nc6 {[%clk 0:00:16]}  h5 {[%clk 0:00:02]} 45. Re3 {[%clk 0:00:13]}  Qxb5 {[%clk 0:00:02]} 46. Rxa3 {[%clk 0:00:12]}  Qxc6 {[%clk 0:00:02]} 47. Rf3 {[%clk 0:00:13]}  g5 {[%clk 0:00:02]} 48. Qxf6+ {[%clk 0:00:13]}  Qxf6 {[%clk 0:00:03]} 49. Rxf6 {[%clk 0:00:14]}  Kxf6 {[%clk 0:00:04]} 50. Bd3 {[%clk 0:00:14]}  Bd5 {[%clk 0:00:04]} 51. Be2 {[%clk 0:00:15]}  Be6 {[%clk 0:00:05]} 52. Bxh5 {[%clk 0:00:15]}  Ke7 {[%clk 0:00:05]} 53. Bg4 {[%clk 0:00:16]}  f5 {[%clk 0:00:06]} 54. Be2 {[%clk 0:00:15]}  Kf6 {[%clk 0:00:06]} 55. Re1 {[%clk 0:00:16]}  f4 {[%clk 0:00:06]} 56. f3 {[%clk 0:00:17]}  Bf7 {[%clk 0:00:07]} 57. Kf2 {[%clk 0:00:18]}  Bg6 {[%clk 0:00:07]} 58. Rd1 {[%clk 0:00:18]}  Bf7 {[%clk 0:00:08]} 59. Rd6+ {[%clk 0:00:19]}  Ke5 {[%clk 0:00:08]} 60. Ra6 {[%clk 0:00:20]}  Be8 {[%clk 0:00:08]} 61. Ra5+ {[%clk 0:00:21]}  Kf6 {[%clk 0:00:09]} 62. Bd3 {[%clk 0:00:21]}  Bd7 {[%clk 0:00:09]} 63. Rd5 {[%clk 0:00:21]}  Be6 {[%clk 0:00:09]} 64. Rd6 {[%clk 0:00:22]}  Ke5 {[%clk 0:00:10]} 65. Rxe6+ {[%clk 0:00:22]}  Kxe6 {[%clk 0:00:11]} 66. Bc2 {[%clk 0:00:22]}  Ke5 {[%clk 0:00:12]} 67. Ke2 {[%clk 0:00:23]}  Kd4 {[%clk 0:00:13]} 68. Kd2 {[%clk 0:00:23]}  Kc4 {[%clk 0:00:13]} 69. Bb1 {[%clk 0:00:23]}  Kd4 {[%clk 0:00:14]} 70. Ba2 {[%clk 0:00:24]}  Kc5 {[%clk 0:00:14]} 71. Kd3 {[%clk 0:00:25]}  Kb4 {[%clk 0:00:13]} 72. Ke4 {[%clk 0:00:25]}  Kc3 {[%clk 0:00:14]} 73. Kf5 {[%clk 0:00:26]}  Kd2 {[%clk 0:00:15]} 74. Kxg5 {[%clk 0:00:27]}  Ke3 {[%clk 0:00:16]} 75. Kg4 {[%clk 0:00:27]}  Kf2 {[%clk 0:00:16]} 76. Kxf4 {[%clk 0:00:28]}  Kg1 {[%clk 0:00:17]} 77. h4 {[%clk 0:00:29]}  Kh2 {[%clk 0:00:18]} 78. h5 {[%clk 0:00:29]}  Kh1 {[%clk 0:00:19]} 79. h6 {[%clk 0:00:30]}  Kg1 {[%clk 0:00:20]} 80. h7 {[%clk 0:00:31]}  Kh2 {[%clk 0:00:21]} 81. g4 {[%clk 0:00:31]}  Kh1 {[%clk 0:00:21]} 82. g5 {[%clk 0:00:32]}  Kg1 {[%clk 0:00:22]} 83. g6 {[%clk 0:00:33]}  Kg2 {[%clk 0:00:23]} 84. g7 {[%clk 0:00:34]}  Kf1 {[%clk 0:00:24]} 85. Kg5 {[%clk 0:00:35]}  Kf2 {[%clk 0:00:25]} 86. f4 {[%clk 0:00:36]}  Ke1 {[%clk 0:00:26]} 87. f5 {[%clk 0:00:37]}  Ke2 {[%clk 0:00:27]} 88. f6 {[%clk 0:00:37]}  Kd1 {[%clk 0:00:28]} 89. f7 {[%clk 0:00:38]}  Kd2 {[%clk 0:00:28]} 90. Be6 {[%clk 0:00:38]}  Kc1 {[%clk 0:00:29]} 91. Bf5 {[%clk 0:00:39]}  Kd2 {[%clk 0:00:30]} 92. Bg6 {[%clk 0:00:40]}  Kd1 {[%clk 0:00:31]} 93. g8=Q {[%clk 0:00:41]}  Ke2 {[%clk 0:00:32]} 94. h8=Q {[%clk 0:00:41]}  Ke1 {[%clk 0:00:33]} 95. f8=Q {[%clk 0:00:41]}  Ke2 {[%clk 0:00:34]} 96. Qh2+ {[%clk 0:00:41]}  Kd1 {[%clk 0:00:35]} 97. Qf1# {[%clk 0:00:41]} 1-0


[Site "https://www.chess.com"]

[Event "Titled Tuesday Blitz June 27 Late 2023"]
[White "Horvath, Dominik"]
[Black "Nihal Sarin"]
[WhiteFideId "1642561"]
[BlackFideId "25092340"]
[WhiteElo "2890"]
[BlackElo "3114"]
[Result "1-0"]
[Round "6"]
[TimeControl "180+2"]
[Date "2023.06.27"]
[WhiteClock "0:00:38"]
[BlackClock "0:00:08"]
[Board "8"]

1. f4 {[%clk 0:03:00]}  d5 {[%clk 0:02:56]} 2. e3 {[%clk 0:03:01]}  Nf6 {[%clk 0:02:55]} 3. g3 {[%clk 0:03:01]}  Bg4 {[%clk 0:02:50]} 4. Nf3 {[%clk 0:02:59]}  Nc6 {[%clk 0:02:50]} 5. Bg2 {[%clk 0:02:59]}  e5 {[%clk 0:02:50]} 6. fxe5 {[%clk 0:02:59]}  Nxe5 {[%clk 0:02:50]} 7. O-O {[%clk 0:03:00]}  h5 {[%clk 0:02:44]} 8. d4 {[%clk 0:02:24]}  Nxf3+ {[%clk 0:02:41]} 9. Bxf3 {[%clk 0:02:25]}  Qd7 {[%clk 0:02:41]} 10. Bxg4 {[%clk 0:02:22]}  hxg4 {[%clk 0:02:37]} 11. c4 {[%clk 0:02:16]}  dxc4 {[%clk 0:02:36]} 12. Qe2 {[%clk 0:02:16]}  O-O-O {[%clk 0:02:34]} 13. Qxc4 {[%clk 0:02:12]}  Bd6 {[%clk 0:02:34]} 14. Nc3 {[%clk 0:02:09]}  Rh3 {[%clk 0:02:34]} 15. e4 {[%clk 0:02:06]}  Rdh8 {[%clk 0:02:31]} 16. e5 {[%clk 0:02:03]}  Rxh2 {[%clk 0:02:32]} 17. exd6 {[%clk 0:02:02]}  Qxd6 {[%clk 0:01:16]} 18. Bf4 {[%clk 0:01:58]}  Qb6 {[%clk 0:00:54]} 19. Rfe1 {[%clk 0:01:38]}  c6 {[%clk 0:00:24]} 20. b4 {[%clk 0:01:11]}  Qd8 {[%clk 0:00:24]} 21. b5 {[%clk 0:01:08]}  Nd5 {[%clk 0:00:12]} 22. Nxd5 {[%clk 0:01:08]}  Qxd5 {[%clk 0:00:12]} 23. Qxd5 {[%clk 0:01:06]}  cxd5 {[%clk 0:00:13]} 24. Re8+ {[%clk 0:01:06]}  Rxe8 {[%clk 0:00:13]} 25. Kxh2 {[%clk 0:01:07]}  Re2+ {[%clk 0:00:13]} 26. Kg1 {[%clk 0:01:07]}  Kd7 {[%clk 0:00:14]} 27. a4 {[%clk 0:01:05]}  f6 {[%clk 0:00:13]} 28. Rc1 {[%clk 0:00:50]}  g5 {[%clk 0:00:13]} 29. Bb8 {[%clk 0:00:47]}  a5 {[%clk 0:00:10]} 30. Rc7+ {[%clk 0:00:43]}  Ke6 {[%clk 0:00:11]} 31. Rxb7 {[%clk 0:00:40]}  Ra2 {[%clk 0:00:12]} 32. Ra7 {[%clk 0:00:38]}  Rxa4 {[%clk 0:00:12]} 33. b6 {[%clk 0:00:38]}  Rb4 {[%clk 0:00:11]} 34. b7 {[%clk 0:00:38]}  Kd7 {[%clk 0:00:08]} 35. Bf4 {[%clk 0:00:38]} 1-0


[Site "https://www.chess.com"]

[Event "Titled Tuesday Blitz June 27 Late 2023"]
[White "Morefield, Jason"]
[Black "Yoo, Christopher Woojin"]
[WhiteFideId "30920825"]
[BlackFideId "30909694"]
[WhiteElo "2768"]
[BlackElo "2977"]
[Result "0-1"]
[Round "6"]
[TimeControl "180+2"]
[Date "2023.06.27"]
[WhiteClock "0:00:00"]
[BlackClock "0:00:31"]
[Board "16"]

1. e4 {[%clk 0:03:00]}  c6 {[%clk 0:02:58]} 2. Nf3 {[%clk 0:02:58]}  d5 {[%clk 0:02:59]} 3. Nc3 {[%clk 0:02:59]}  Bg4 {[%clk 0:02:59]} 4. h3 {[%clk 0:02:59]}  Bxf3 {[%clk 0:02:56]} 5. Qxf3 {[%clk 0:03:00]}  e6 {[%clk 0:02:56]} 6. Be2 {[%clk 0:03:00]}  Nf6 {[%clk 0:02:56]} 7. O-O {[%clk 0:02:59]}  Be7 {[%clk 0:02:50]} 8. Rd1 {[%clk 0:02:40]}  d4 {[%clk 0:02:45]} 9. Nb1 {[%clk 0:02:40]}  O-O {[%clk 0:02:42]} 10. d3 {[%clk 0:02:35]}  c5 {[%clk 0:02:41]} 11. Nd2 {[%clk 0:02:24]}  Nc6 {[%clk 0:02:39]} 12. g3 {[%clk 0:02:24]}  Qc7 {[%clk 0:02:36]} 13. Rf1 {[%clk 0:02:12]}  b5 {[%clk 0:02:34]} 14. Qg2 {[%clk 0:02:07]}  e5 {[%clk 0:02:07]} 15. f4 {[%clk 0:01:58]}  Nb4 {[%clk 0:02:06]} 16. Bd1 {[%clk 0:01:58]}  c4 {[%clk 0:02:03]} 17. a3 {[%clk 0:01:43]}  cxd3 {[%clk 0:01:54]} 18. axb4 {[%clk 0:01:41]}  dxc2 {[%clk 0:01:53]} 19. Be2 {[%clk 0:01:38]}  Bxb4 {[%clk 0:01:54]} 20. Nf3 {[%clk 0:01:34]}  Nxe4 {[%clk 0:01:19]} 21. Nxe5 {[%clk 0:01:33]}  Nd2 {[%clk 0:01:05]} 22. Nd3 {[%clk 0:01:05]}  Nxf1 {[%clk 0:01:00]} 23. Bxf1 {[%clk 0:01:02]}  Bd6 {[%clk 0:00:52]} 24. Bd2 {[%clk 0:00:58]}  a5 {[%clk 0:00:53]} 25. Rc1 {[%clk 0:00:57]}  Rfc8 {[%clk 0:00:50]} 26. Ne1 {[%clk 0:00:45]}  Qb6 {[%clk 0:00:50]} 27. Bd3 {[%clk 0:00:43]}  b4 {[%clk 0:00:42]} 28. Rxc2 {[%clk 0:00:42]}  b3 {[%clk 0:00:42]} 29. Rc4 {[%clk 0:00:38]}  a4 {[%clk 0:00:38]} 30. Qe4 {[%clk 0:00:23]}  g6 {[%clk 0:00:37]} 31. Nf3 {[%clk 0:00:16]}  a3 {[%clk 0:00:37]} 32. bxa3 {[%clk 0:00:12]}  b2 {[%clk 0:00:34]} 33. Rxc8+ {[%clk 0:00:11]}  Rxc8 {[%clk 0:00:35]} 34. Bb1 {[%clk 0:00:08]}  Rc1+ {[%clk 0:00:32]} 35. Kg2 {[%clk 0:00:08]}  Qb5 {[%clk 0:00:32]} 36. Ne1 {[%clk 0:00:02]}  Rxb1 {[%clk 0:00:31]} 37. Qxb1 {[%clk 0:00:01]}  Qe2+ {[%clk 0:00:32]} 38. Kh1 {[%clk 0:00:02]}  Qxd2 {[%clk 0:00:33]} 39. Nd3 {[%clk 0:00:02]}  Bxa3 {[%clk 0:00:31]} 40. Kg1 {[%clk 0:00:00]}  Qc1+ {[%clk 0:00:31]} 0-1


[Site "https://www.chess.com"]

[Event "Titled Tuesday Blitz June 27 Late 2023"]
[White "Mahdavi, Reza"]
[Black "Rasulov, Vugar"]
[WhiteFideId "12595926"]
[BlackFideId "13402390"]
[WhiteElo "2752"]
[BlackElo "2933"]
[Result "0-1"]
[Round "6"]
[TimeControl "180+2"]
[Date "2023.06.27"]
[WhiteClock "0:00:00"]
[BlackClock "0:00:04"]
[Board "18"]

1. e4 {[%clk 0:02:39]}  c5 {[%clk 0:03:00]} 2. Nf3 {[%clk 0:02:39]}  e6 {[%clk 0:03:00]} 3. d4 {[%clk 0:02:39]}  cxd4 {[%clk 0:03:01]} 4. Nxd4 {[%clk 0:02:40]}  a6 {[%clk 0:03:01]} 5. Nc3 {[%clk 0:02:40]}  Nc6 {[%clk 0:02:58]} 6. Be3 {[%clk 0:02:39]}  Nf6 {[%clk 0:02:57]} 7. g4 {[%clk 0:02:38]}  Bb4 {[%clk 0:02:53]} 8. Nxc6 {[%clk 0:02:32]}  bxc6 {[%clk 0:02:52]} 9. g5 {[%clk 0:02:24]}  Nxe4 {[%clk 0:02:28]} 10. Qd4 {[%clk 0:02:24]}  Nxc3 {[%clk 0:02:08]} 11. Qxg7 {[%clk 0:02:16]}  Nd5+ {[%clk 0:01:59]} 12. c3 {[%clk 0:02:16]}  Rf8 {[%clk 0:01:57]} 13. cxb4 {[%clk 0:02:15]}  Nxe3 {[%clk 0:01:56]} 14. fxe3 {[%clk 0:02:15]}  a5 {[%clk 0:01:52]} 15. b5 {[%clk 0:01:59]}  cxb5 {[%clk 0:01:51]} 16. Bg2 {[%clk 0:01:59]}  Ra7 {[%clk 0:01:39]} 17. O-O {[%clk 0:01:59]}  d5 {[%clk 0:01:38]} 18. Rac1 {[%clk 0:01:56]}  Rc7 {[%clk 0:01:34]} 19. h4 {[%clk 0:01:55]}  Bd7 {[%clk 0:01:26]} 20. Qxh7 {[%clk 0:01:51]}  Rxc1 {[%clk 0:01:22]} 21. Rxc1 {[%clk 0:01:52]}  Qb6 {[%clk 0:01:22]} 22. Kf2 {[%clk 0:01:43]}  d4 {[%clk 0:01:16]} 23. Qe4 {[%clk 0:01:43]}  dxe3+ {[%clk 0:01:15]} 24. Qxe3 {[%clk 0:01:43]}  Qd6 {[%clk 0:01:14]} 25. h5 {[%clk 0:01:38]}  Qb4 {[%clk 0:01:09]} 26. Rd1 {[%clk 0:01:25]}  Rg8 {[%clk 0:00:59]} 27. Qd3 {[%clk 0:01:18]}  Qe7 {[%clk 0:00:49]} 28. g6 {[%clk 0:00:28]}  fxg6 {[%clk 0:00:45]} 29. h6 {[%clk 0:00:29]}  Qc5+ {[%clk 0:00:30]} 30. Ke1 {[%clk 0:00:25]}  Qe5+ {[%clk 0:00:25]} 31. Kf2 {[%clk 0:00:26]}  Qc5+ {[%clk 0:00:20]} 32. Ke1 {[%clk 0:00:13]}  Qe5+ {[%clk 0:00:20]} 33. Kf2 {[%clk 0:00:14]}  Rf8+ {[%clk 0:00:18]} 34. Kg1 {[%clk 0:00:11]}  Rf7 {[%clk 0:00:19]} 35. Qxg6 {[%clk 0:00:10]}  Qe3+ {[%clk 0:00:16]} 36. Kh1 {[%clk 0:00:10]}  Qf4 {[%clk 0:00:16]} 37. Qh5 {[%clk 0:00:04]}  Qf5 {[%clk 0:00:06]} 38. Qh2 {[%clk 0:00:02]}  Rh7 {[%clk 0:00:04]} 39. Qb8+ {[%clk 0:00:02]}  Ke7 {[%clk 0:00:04]} 40. Qd6+ {[%clk 0:00:02]}  Kf6 {[%clk 0:00:05]} 41. Qh2 {[%clk 0:00:02]}  Qg5 {[%clk 0:00:04]} 42. Rf1+ {[%clk 0:00:02]}  Ke7 {[%clk 0:00:04]} 43. Bh3 {[%clk 0:00:01]}  Rxh6 {[%clk 0:00:04]} 44. Rg1 {[%clk 0:00:00]}  Bc6+ {[%clk 0:00:04]} 0-1


[Site "https://www.chess.com"]

[Event "Titled Tuesday Blitz June 27 Late 2023"]
[White "Suleymanli, Aydin"]
[Black "Mihajlov, Sebastian"]
[WhiteFideId "13413937"]
[BlackFideId "1512110"]
[WhiteElo "2905"]
[BlackElo "2721"]
[Result "0-1"]
[Round "6"]
[TimeControl "180+2"]
[Date "2023.06.27"]
[WhiteClock "0:00:01"]
[BlackClock "0:00:15"]
[Board "20"]

1. e4 {[%clk 0:03:00]}  e6 {[%clk 0:02:59]} 2. d3 {[%clk 0:02:50]}  d5 {[%clk 0:02:57]} 3. Nd2 {[%clk 0:02:51]}  Nc6 {[%clk 0:02:56]} 4. Ngf3 {[%clk 0:02:51]}  e5 {[%clk 0:02:56]} 5. g3 {[%clk 0:02:50]}  f6 {[%clk 0:02:55]} 6. exd5 {[%clk 0:02:48]}  Qxd5 {[%clk 0:02:55]} 7. Bg2 {[%clk 0:02:48]}  Be6 {[%clk 0:02:52]} 8. O-O {[%clk 0:02:48]}  Qd7 {[%clk 0:02:53]} 9. a4 {[%clk 0:02:42]}  a5 {[%clk 0:02:46]} 10. Nc4 {[%clk 0:02:41]}  Bc5 {[%clk 0:02:42]} 11. Be3 {[%clk 0:02:40]}  Bxe3 {[%clk 0:02:41]} 12. fxe3 {[%clk 0:02:40]}  Nge7 {[%clk 0:02:39]} 13. Nh4 {[%clk 0:02:39]}  O-O {[%clk 0:02:36]} 14. b3 {[%clk 0:02:32]}  Rad8 {[%clk 0:02:33]} 15. Qe1 {[%clk 0:02:26]}  b6 {[%clk 0:02:33]} 16. Rf2 {[%clk 0:02:18]}  Nb4 {[%clk 0:02:27]} 17. Qc3 {[%clk 0:02:12]}  Ned5 {[%clk 0:02:25]} 18. Qd2 {[%clk 0:02:12]}  Ne7 {[%clk 0:02:21]} 19. Qc3 {[%clk 0:02:10]}  Ned5 {[%clk 0:02:20]} 20. Qb2 {[%clk 0:02:10]}  Ne7 {[%clk 0:02:20]} 21. Raf1 {[%clk 0:02:09]}  Bh3 {[%clk 0:02:08]} 22. e4 {[%clk 0:01:38]}  Bxg2 {[%clk 0:02:04]} 23. Kxg2 {[%clk 0:01:39]}  Qe6 {[%clk 0:01:55]} 24. Ne3 {[%clk 0:01:38]}  Nbc6 {[%clk 0:01:49]} 25. Qc3 {[%clk 0:01:35]}  Nd4 {[%clk 0:01:49]} 26. h3 {[%clk 0:01:23]}  Qc6 {[%clk 0:01:36]} 27. Qb2 {[%clk 0:01:14]}  Qe6 {[%clk 0:01:35]} 28. Kh2 {[%clk 0:01:13]}  Rd6 {[%clk 0:01:33]} 29. g4 {[%clk 0:01:11]}  h6 {[%clk 0:01:26]} 30. Nhf5 {[%clk 0:01:10]}  Nexf5 {[%clk 0:01:18]} 31. gxf5 {[%clk 0:01:10]}  Qf7 {[%clk 0:01:15]} 32. Rg1 {[%clk 0:01:09]}  Rfd8 {[%clk 0:00:54]} 33. Rg3 {[%clk 0:01:02]}  R8d7 {[%clk 0:00:48]} 34. Qc1 {[%clk 0:01:01]}  Kf8 {[%clk 0:00:46]} 35. Qg1 {[%clk 0:00:54]}  Ke8 {[%clk 0:00:45]} 36. Rg6 {[%clk 0:00:46]}  Rc6 {[%clk 0:00:34]} 37. Qg2 {[%clk 0:00:42]}  Kf8 {[%clk 0:00:31]} 38. Nc4 {[%clk 0:00:34]}  Rc5 {[%clk 0:00:29]} 39. Qg4 {[%clk 0:00:24]}  Re7 {[%clk 0:00:17]} 40. Ne3 {[%clk 0:00:21]}  Rd7 {[%clk 0:00:17]} 41. Qg2 {[%clk 0:00:21]}  c6 {[%clk 0:00:17]} 42. Nf1 {[%clk 0:00:20]}  b5 {[%clk 0:00:17]} 43. Ng3 {[%clk 0:00:20]}  bxa4 {[%clk 0:00:17]} 44. bxa4 {[%clk 0:00:21]}  Rb7 {[%clk 0:00:18]} 45. Nh5 {[%clk 0:00:21]}  Rb2 {[%clk 0:00:16]} 46. Rxg7 {[%clk 0:00:21]}  Qxh5 {[%clk 0:00:16]} 47. Rg8+ {[%clk 0:00:02]}  Ke7 {[%clk 0:00:15]} 48. Rg7+ {[%clk 0:00:03]}  Kf8 {[%clk 0:00:16]} 49. Rg8+ {[%clk 0:00:03]}  Ke7 {[%clk 0:00:16]} 50. Rg7+ {[%clk 0:00:02]}  Kd6 {[%clk 0:00:15]} 51. Rg6 {[%clk 0:00:02]}  Rcxc2 {[%clk 0:00:15]} 52. Rxf6+ {[%clk 0:00:02]}  Kc5 {[%clk 0:00:16]} 53. Rxc6+ {[%clk 0:00:01]}  Kxc6 {[%clk 0:00:16]} 54. Kh1 {[%clk 0:00:02]}  Rxf2 {[%clk 0:00:15]} 55. Qxf2 {[%clk 0:00:01]} 0-1


[Site "https://www.chess.com"]